fUST/lending_fUST_20260115
["ID","MTS","AMOUNT","RATE_DAILY","PERIOD"]
[401978863,1768433444663,-151.0,0.00021918,2]
[401978865,1768433444673,-285.163634,0.00021918,2]
[401978866,1768433444682,-151.0,0.00021918,2]
[401978868,1768433444690,-151.0,0.00021918,2]
[401978870,1768433444699,-151.0,0.00021918,2]
[401978872,1768433444709,-151.0,0.00021918,2]
[401978874,1768433444721,-151.0,0.00021918,2]
[401978876,1768433444731,-151.0,0.00021918,2]
[401978878,1768433444741,-151.0,0.00021918,2]
[401978880,1768433444750,-1200.0,0.00021918,2]
[401978882,1768433444761,-8000.0,0.00021918,2]
[401978884,1768433444770,-650.0,0.00021918,2]
[401978886,1768433444784,-2381.87,0.00022,7]
[401978888,1768433444793,-714.6,0.00022057,2]
[401978890,1768433444802,-25165.681104,0.00022107,30]
[401978892,1768433444812,-151.0,0.000222,7]
[401978894,1768433444822,-167.77,0.000223,7]
[401978896,1768433444831,-813.50644317,0.00022318,15]
[401978898,1768433444840,-2000.0,0.00022449,7]
[401978900,1768433444849,-300.0,0.00022466,2]
[401978902,1768433444858,-200.0,0.00022466,2]
[401978904,1768433444867,-364.52541442,0.00022466,2]
[401978906,1768433444876,-750.0,0.00022466,2]
[401978908,1768433444885,-8784.72600196,0.00022557,2]
[401978910,1768433444894,-183.58,0.00022693,2]
[401978912,1768433444903,-157.49913752,0.00022725,5]
[401978914,1768433444912,-169.45964144,0.00022877,8]
[401978916,1768433444921,-450.0,0.00023014,2]
[401978918,1768433444930,-1400.0,0.00023014,2]
[401978920,1768433444940,-260.92385342,0.00023014,2]
[401978922,1768433444949,-850.0,0.00023014,2]
[401978924,1768433444958,-714.6,0.00023067,2]
[401978926,1768433444967,-248.76,0.000231,7]
[401978928,1768433444976,-218.33,0.000231,7]
[401978930,1768433444987,-4350.78,0.000231,14]
[401978931,1768433444995,-900.0,0.00023137,2]
[401978933,1768433445005,-182.95072115,0.0002315,2]
[401978935,1768433445014,-800.0,0.00023175,2]
[401978937,1768433445023,-813.50644317,0.00023179,16]
[401978939,1768433445032,-900.0,0.00023208,2]
[401978941,1768433445041,-724.85577277,0.00023224,2]
[401978943,1768433445051,-900.0,0.00023279,2]
[401978945,1768433445062,-200.0,0.00023288,7]
[401978947,1768433445071,-29951.84,0.000233,2]
[401978949,1768433445080,-500.0,0.00023307,2]
[401978951,1768433445090,-2000.0,0.00023327,7]
[401978953,1768433445099,-151.0,0.00023333,2]
[401978955,1768433445107,-900.0,0.00023394,2]
[401978957,1768433445117,-1600.0,0.00023397,2]
[401978959,1768433445126,-233.0,0.00023425,10]
[401978961,1768433445135,-157.49913751,0.00023447,5]
[401978963,1768433445145,-800.0,0.00023464,2]
[401978965,1768433445155,-2381.87,0.000235,7]
[401978967,1768433445164,-900.0,0.00023535,2]
[401978969,1768433445174,-499.3,0.00023544,2]
[401978971,1768433445184,-600.0,0.00023562,2]
[401978974,1768433445193,-500.0,0.00023562,2]
[401978976,1768433445203,-1600.0,0.00023563,2]
[401978978,1768433445213,-500.0,0.00023591,2]
[401978980,1768433445222,-1600.0,0.00023623,2]
[401978982,1768433445231,-1600.0,0.00023628,2]
[401978983,1768433445241,-151.0,0.0002363,2]
[401978984,1768433445251,-151.0,0.0002363,2]
[401978985,1768433445261,-151.0,0.0002363,2]
[401978986,1768433445270,-151.0,0.0002363,2]
[401978987,1768433445280,-151.0,0.0002363,2]
[401978988,1768433445290,-500.0,0.00023656,2]
[401978989,1768433445300,-1600.0,0.00023658,2]
[401978990,1768433445309,-1600.0,0.00023662,2]
[401978991,1768433445319,-4289.84238407,0.000237,14]
[401978992,1768433445328,-500.0,0.00023733,2]
[401978993,1768433445337,-900.0,0.00023758,2]
[401978994,1768433445345,-900.0,0.00023765,2]
[401978995,1768433445357,-1600.0,0.00023766,2]
[401978996,1768433445370,-800.0,0.0002377,2]
[401978997,1768433445384,-500.0,0.00023773,2]
[401978998,1768433445397,-800.0,0.00023774,2]
[401978999,1768433445409,-1600.0,0.00023804,2]
[401979000,1768433445420,-900.0,0.00023805,2]
[401979001,1768433445433,-800.0,0.00023813,2]
[401979002,1768433445445,-392.03531054,0.00023816,2]
[401979004,1768433445457,-522.71374739,0.00023816,2]
[401979007,1768433445469,-261.3568737,0.00023816,2]
[401979009,1768433445482,-500.0,0.00023819,2]
[401979011,1768433445494,-900.0,0.0002382,2]
[401979014,1768433445506,-4427.0,0.00023821,2]
[401979016,1768433445520,-800.0,0.00023822,2]
[401979019,1768433445533,-900.0,0.00023826,2]
[401979021,1768433445545,-190.0,0.00023844,2]
[401979023,1768433445555,-800.0,0.00023854,2]
[401979025,1768433445567,-900.0,0.00023868,2]
[401979028,1768433445579,-500.0,0.0002388,2]
[401979030,1768433445589,-151.0,0.00023916,2]
[401979032,1768433445601,-151.0,0.00023916,2]
[401979034,1768433445613,-900.0,0.00023927,2]
[401979037,1768433445625,-800.0,0.00023952,2]
[401979039,1768433445636,-900.0,0.00023968,2]
[401979041,1768433445647,-800.0,0.00023983,2]
[401979043,1768433445657,-1041.66666667,0.00024,7]
[401979046,1768433445668,-128967.02373672,0.00024,2]
[401979048,1768433445679,-275.55471384,0.00024,2]
[401979050,1768433445691,-1931.32974169,0.00024,60]
[401979053,1768433445704,-1736.447596,0.00024,2]
[401979055,1768433445719,-151.0,0.00024,2]
[401979057,1768433445731,-151.0,0.00024,2]
[401979060,1768433445745,-151.0,0.00024,2]
[401979062,1768433445759,-465.90719096,0.00024,2]
[401979064,1768433445772,-151.0,0.00024,2]
[401979067,1768433445787,-151.0,0.00024,2]
[401979069,1768433445799,-151.0,0.00024,2]
[401979071,1768433445808,-151.0,0.00024,2]
[401979073,1768433445819,-151.0,0.00024,2]
[401979076,1768433445830,-151.0,0.00024,2]
[401979078,1768433445840,-1770.408967,0.00024,2]
[401979080,1768433445852,-1770.408967,0.00024,2]
[401979083,1768433445866,-151.0,0.00024,2]
[401979085,1768433445878,-1770.408967,0.00024,2]
[401979087,1768433445888,-1770.408967,0.00024,2]
[401979089,1768433445900,-1498.239018,0.00024,2]
[401979091,1768433445911,-1498.239018,0.00024,2]
[401979094,1768433445922,-1498.239018,0.00024,2]
[401979096,1768433445935,-151.0,0.00024,2]
[401979098,1768433445946,-1498.239018,0.00024,2]
[401979100,1768433445956,-240.755518,0.00024,2]
[401979103,1768433445967,-263.265987,0.00024,2]
[401979105,1768433445978,-263.265987,0.00024,2]
[401979107,1768433445991,-263.265987,0.00024,2]
[401979109,1768433446005,-263.265987,0.00024,2]
[401979111,1768433446016,-593.168376,0.00024,2]
[401979114,1768433446026,-593.168376,0.00024,2]
[401979116,1768433446036,-593.168376,0.00024,2]
[401979118,1768433446047,-593.168376,0.00024,2]
[401979120,1768433446057,-151.0,0.00024,2]
[401979122,1768433446068,-151.0,0.00024,2]
[401979124,1768433446079,-151.0,0.00024,2]
[401979127,1768433446090,-186.591978,0.00024,2]
[401979129,1768433446102,-186.591978,0.00024,2]
[401979131,1768433446112,-186.591978,0.00024,2]
[401979133,1768433446123,-186.591978,0.00024,2]
[401979135,1768433446133,-231.464097,0.00024,2]
[401979137,1768433446144,-151.0,0.00024,2]
[401979140,1768433446156,-151.0,0.00024,2]
[401979142,1768433446166,-1600.0,0.00024022,2]
[401979144,1768433446178,-813.50644317,0.0002404,18]
[401979146,1768433446188,-800.0,0.00024045,2]
[401979148,1768433446200,-1600.0,0.00024053,2]
[401979150,1768433446210,-500.0,0.0002406,2]
[401979153,1768433446221,-800.0,0.00024068,2]
[401979155,1768433446232,-714.6,0.00024077,2]
[401979157,1768433446243,-500.0,0.00024094,2]
[401979159,1768433446254,-900.0,0.00024094,2]
[401979161,1768433446265,-1000.0,0.00024106,10]
[401979164,1768433446277,-1000.0,0.00024106,10]
[401979166,1768433446289,-750.0,0.0002411,2]
[401979168,1768433446301,-401.4141805,0.0002411,2]
[401979170,1768433446312,-477972.68394232,0.00024142,2]
[401979172,1768433446323,-1082.98429516,0.00024146,2]
[401979174,1768433446333,-900.0,0.00024176,2]
[401979176,1768433446344,-500.0,0.0002418,2]
[401979177,1768433446355,-23398.38608296,0.000242,2]
[401979178,1768433446367,-1600.0,0.000242,2]
[401979179,1768433446378,-151.0,0.000242,2]
[401979180,1768433446389,-151.0,0.000242,2]
[401979181,1768433446401,-151.0,0.000242,2]
[401979182,1768433446412,-186.591978,0.000242,2]
[401979183,1768433446423,-186.591978,0.000242,2]
[401979184,1768433446434,-186.591978,0.000242,2]
[401979185,1768433446445,-186.591978,0.000242,2]
[401979186,1768433446456,-151.0,0.000242,2]
[401979187,1768433446466,-2000.0,0.00024204,7]
[401979188,1768433446477,-1600.0,0.00024245,2]
[401979189,1768433446488,-900.0,0.00024254,2]
[401979190,1768433446499,-900.0,0.00024267,2]
[401979191,1768433446510,-1600.0,0.00024274,2]
[401979192,1768433446521,-800.0,0.00024293,2]
[401979193,1768433446532,-1600.0,0.00024295,2]
[401979194,1768433446543,-1600.0,0.000243,2]
[401979195,1768433446554,-800.0,0.00024328,2]
[401979196,1768433446566,-1600.0,0.00024369,2]
[401979197,1768433446577,-900.0,0.00024379,2]
[401979198,1768433446588,-1600.0,0.00024384,2]
[401979199,1768433446599,-1600.0,0.00024394,2]
[401979200,1768433446610,-248.76,0.000244,7]
[401979201,1768433446620,-218.33,0.000244,7]
[401979202,1768433446632,-4350.78,0.000244,14]
[401979203,1768433446642,-900.0,0.0002441,2]
[401979204,1768433446654,-800.0,0.00024422,2]
[401979205,1768433446664,-500.0,0.00024427,2]
[401979206,1768433446675,-151.0,0.00024428,2]
[401979207,1768433446686,-299.922377,0.00024428,2]
[401979208,1768433446697,-151.0,0.00024428,2]
[401979209,1768433446711,-1600.0,0.00024444,2]
[401979210,1768433446723,-2000.0,0.00024484,30]
[401979211,1768433446734,-2000.0,0.00024484,30]
[401979212,1768433446745,-996.312,0.00024484,30]
[401979213,1768433446756,-1000.0,0.00024495,30]
[401979214,1768433446767,-1000.0,0.00024495,30]
[401979215,1768433446778,-1000.0,0.00024495,30]
[401979216,1768433446790,-1000.0,0.00024495,30]
[401979217,1768433446801,-475.0,0.00024495,30]
[401979218,1768433446812,-475.0,0.00024495,30]
[401979219,1768433446823,-475.0,0.00024495,30]
[401979220,1768433446834,-475.0,0.00024495,30]
[401979221,1768433446845,-475.0,0.00024495,30]
[401979222,1768433446856,-475.0,0.00024495,30]
[401979223,1768433446866,-475.0,0.00024495,30]
[401979224,1768433446877,-475.0,0.00024495,30]
[401979225,1768433446888,-475.0,0.00024495,30]
[401979226,1768433446899,-475.0,0.00024495,30]
[401979227,1768433446911,-475.0,0.00024495,30]
[401979228,1768433446923,-475.0,0.00024495,30]
[401979229,1768433446933,-475.0,0.00024495,30]
[401979230,1768433446944,-475.0,0.00024495,30]
[401979231,1768433446955,-475.0,0.00024495,30]
[401979232,1768433446967,-475.0,0.00024495,30]
[401979233,1768433446978,-475.0,0.00024495,30]
[401979234,1768433446990,-475.0,0.00024495,30]
[401979235,1768433447000,-475.0,0.00024495,30]
[401979236,1768433447011,-475.0,0.00024495,30]
[401979237,1768433447022,-475.0,0.00024495,30]
[401979238,1768433447032,-475.0,0.00024495,30]
[401979239,1768433447043,-475.0,0.00024495,30]
[401979240,1768433447054,-475.0,0.00024495,30]
[401979241,1768433447066,-475.0,0.00024495,30]
[401979242,1768433447077,-475.0,0.00024495,30]
[401979243,1768433447087,-475.0,0.00024495,30]
[401979245,1768433447097,-475.0,0.00024495,30]
[401979246,1768433447106,-475.0,0.00024495,30]
[401979247,1768433447115,-475.0,0.00024495,30]
[401979248,1768433447124,-475.0,0.00024495,30]
[401979249,1768433447134,-475.0,0.00024495,30]
[401979250,1768433447376,-475.0,0.00024495,30]
[401979251,1768433447396,-475.0,0.00024495,30]
[401979252,1768433447412,-475.0,0.00024495,30]
[401979253,1768433447421,-475.0,0.00024495,30]
[401979254,1768433447431,-475.0,0.00024495,30]
[401979255,1768433447440,-475.0,0.00024495,30]
[401979256,1768433447449,-475.0,0.00024495,30]
[401979257,1768433447459,-475.0,0.00024495,30]
[401979258,1768433447468,-475.0,0.00024495,30]
[401979259,1768433447477,-475.0,0.00024495,30]
[401979260,1768433447486,-475.0,0.00024495,30]
[401979261,1768433447495,-475.0,0.00024495,30]
[401979262,1768433447505,-475.0,0.00024495,30]
[401979263,1768433447515,-475.0,0.00024495,30]
[401979264,1768433447524,-475.0,0.00024495,30]
[401979265,1768433447534,-475.0,0.00024495,30]
[401979266,1768433447543,-475.0,0.00024495,30]
[401979267,1768433447553,-475.0,0.00024495,30]
[401979268,1768433447565,-475.0,0.00024495,30]
[401979269,1768433447575,-475.0,0.00024495,30]
[401979270,1768433447586,-475.0,0.00024495,30]
[401979271,1768433447596,-379.22011215,0.00024495,30]
[401979272,1768433447986,-4586.05365513,0.00019475,2]
[401979273,1768433447996,-2133.94634487,0.00021,2]
[401979274,1768433448085,-300.0,0.00015089,2]
[401979275,1768433448095,-290.89,0.00015089,2]
[401979276,1768433448108,-9.11,0.00015089,2]
[401979277,1768433448119,-300.0,0.00015089,2]
[401979278,1768433448128,-300.0,0.00015089,2]
[401979279,1768433448140,-819.66700251,0.00021,2]
[401979280,1768433448153,-1500.0,0.00021,2]
[401979282,1768433648886,192.8699,0.00027397,120]
[401979283,1768434346328,973.12,0.00027397,120]
[401979364,1768434632379,-572.0,0.00010799,2]
[401979365,1768434632389,-6760.2409063,0.00010799,2]
[401979366,1768434632399,-347.54711698,0.00010879,2]
[401979367,1768434632409,-293.0183777,0.00010959,2]
[401979368,1768434632418,-1200.0,0.00011519,2]
[401979369,1768434632427,-300.0,0.00011521,2]
[401979370,1768434632436,-9576.7908063,0.00011522,2]
[401979371,1768434632445,-622.141,0.0001169,2]
[401979372,1768434632455,-2942.05365516,0.00012066,2]
[401979373,1768434632464,-300.0,0.00012166,2]
[401979374,1768434632473,-300.0,0.00012166,2]
[401979375,1768434632483,-300.0,0.00012166,2]
[401979376,1768434632492,-300.0,0.00012166,2]
[401979377,1768434632512,-300.0,0.00012166,2]
[401979378,1768434632521,-300.0,0.00012166,2]
[401979379,1768434632531,-300.0,0.00012166,2]
[401979380,1768434632541,-300.0,0.00012166,2]
[401979381,1768434632555,-300.0,0.00012166,2]
[401979382,1768434632577,-300.0,0.00012166,2]
[401979383,1768434632595,-300.0,0.00012166,2]
[401979384,1768434632604,-300.0,0.00012166,2]
[401979386,1768434632614,-300.0,0.00012166,2]
[401979387,1768434632623,-300.0,0.00012166,2]
[401979388,1768434632632,-300.0,0.00012166,2]
[401979389,1768434632642,-600.0,0.00012166,2]
[401979390,1768434632651,-420.0,0.00012654,2]
[401979391,1768434632660,-1680.0,0.00012671,2]
[401979392,1768434632669,-410.10559804,0.00012879,2]
[401979393,1768434632679,-500.0,0.00012999,2]
[401979394,1768434632689,-500.0,0.00012999,2]
[401979395,1768434632698,-500.0,0.00012999,2]
[401979396,1768434632707,-500.0,0.00013136,2]
[401979397,1768434632716,-500.0,0.00013136,2]
[401979398,1768434632727,-500.0,0.00013136,2]
[401979399,1768434632736,-371.77534548,0.00013272,2]
[401979400,1768434632746,-278.58612381,0.00013273,2]
[401979401,1768434632755,-500.0,0.00013273,2]
[401979402,1768434632764,-500.0,0.00013273,2]
[401979403,1768434632774,-500.0,0.00013273,2]
[401979404,1768434632783,-500.0,0.00013273,2]
[401979405,1768434632793,-500.0,0.00013273,2]
[401979406,1768434632801,-500.0,0.00013273,2]
[401979407,1768434632810,-500.0,0.00013273,2]
[401979408,1768434632820,-500.0,0.00013273,2]
[401979409,1768434632829,-500.0,0.00013273,2]
[401979410,1768434632840,-500.0,0.00013273,2]
[401979411,1768434632849,-500.0,0.00013273,2]
[401979412,1768434632858,-500.0,0.00013273,2]
[401979413,1768434632869,-500.0,0.00013273,2]
[401979414,1768434632878,-500.0,0.00013273,2]
[401979415,1768434632888,-500.0,0.00013273,2]
[401979416,1768434632897,-500.0,0.00013273,2]
[401979417,1768434632906,-500.0,0.00013273,2]
[401979418,1768434632916,-500.0,0.00013273,2]
[401979419,1768434632925,-500.0,0.00013273,2]
[401979420,1768434632935,-500.0,0.00013273,2]
[401979421,1768434632944,-500.0,0.00013273,2]
[401979422,1768434632953,-500.0,0.00013273,2]
[401979423,1768434632962,-500.0,0.00013273,2]
[401979424,1768434632971,-500.0,0.00013273,2]
[401979425,1768434632980,-500.0,0.00013273,2]
[401979426,1768434632990,-500.0,0.00013273,2]
[401979427,1768434632999,-500.0,0.00013273,2]
[401979428,1768434633008,-397.87367922,0.00013273,2]
[401979429,1768434633018,-500.0,0.00013273,2]
[401979430,1768434633027,-500.0,0.00013273,2]
[401979431,1768434633040,-500.0,0.00013273,2]
[401979432,1768434633049,-500.0,0.00013273,2]
[401979433,1768434633058,-500.0,0.00013273,2]
[401979434,1768434633068,-476.24625729,0.00013273,2]
[401979435,1768434633077,-500.0,0.00013273,2]
[401979436,1768434633087,-500.0,0.00013273,2]
[401979437,1768434633096,-648.56695785,0.00013273,2]
[401979438,1768434633107,-424.36340331,0.00013273,2]
[401979439,1768434633116,-402.84208179,0.00013273,2]
[401979440,1768434633126,-344.64451203,0.00013273,2]
[401979441,1768434633135,-619.03226299,0.00013273,2]
[401979442,1768434633144,-500.0,0.00013273,2]
[401979443,1768434633153,-500.0,0.00013273,2]
[401979444,1768434633165,-500.0,0.00013273,2]
[401979445,1768434633174,-500.0,0.00013273,2]
[401979446,1768434633183,-500.0,0.00013273,2]
[401979447,1768434633192,-500.0,0.00013273,2]
[401979448,1768434633202,-179.89432296,0.00013273,2]
[401979449,1768434633211,-500.0,0.00013273,2]
[401979450,1768434633220,-500.0,0.00013273,2]
[401979451,1768434633230,-315.55117626,0.00013273,2]
[401979452,1768434633239,-562.21911947,0.00013273,2]
[401979453,1768434633249,-500.0,0.00013273,2]
[401979454,1768434633258,-500.0,0.00013273,2]
[401979455,1768434633267,-500.0,0.00013273,2]
[401979456,1768434633277,-500.0,0.00013273,2]
[401979457,1768434633287,-466.5089198,0.00013273,2]
[401979458,1768434633296,-500.0,0.00013273,2]
[401979459,1768434633305,-500.0,0.00013273,2]
[401979460,1768434633315,-280.25700179,0.00013273,2]
[401979461,1768434633328,-720.0,0.00013383,2]
[401979462,1768434633338,-67.8316647,0.0001341,2]
[401979463,1768434633351,-432.1683353,0.0001341,2]
[401979464,1768434633360,-572.20378063,0.0001341,2]
[401979465,1768434633370,-500.0,0.00013547,2]
[401979466,1768434633378,-300.0,0.00013673,2]
[401979467,1768434633388,-429.09707327,0.00013684,2]
[401979468,1768434633398,-250.0,0.00013684,2]
[401979469,1768434633408,-500.0,0.00013698,2]
[401979470,1768434633418,-582.50112986,0.00013698,2]
[401979471,1768434633427,-500.0,0.00013698,2]
[401979472,1768434633437,-500.0,0.00013698,2]
[401979473,1768434633446,-500.0,0.00013698,2]
[401979474,1768434633455,-500.0,0.00013698,2]
[401979475,1768434633464,-282.45018346,0.00013698,2]
[401979476,1768434633474,-567.79,0.00013698,2]
[401979477,1768434633484,-567.79,0.00013698,2]
[401979478,1768434633494,-567.79,0.00013698,2]
[401979479,1768434633504,-567.79,0.00013698,2]
[401979480,1768434633513,-567.79,0.00013698,2]
[401979481,1768434633523,-567.79,0.00013698,2]
[401979482,1768434633533,-567.79,0.00013698,2]
[401979483,1768434633545,-567.79,0.00013698,2]
[401979484,1768434633555,-567.79,0.00013698,2]
[401979485,1768434633565,-500.0,0.00013698,2]
[401979486,1768434633574,-500.0,0.00013698,2]
[401979487,1768434633583,-500.0,0.00013698,2]
[401979488,1768434633593,-500.0,0.00013698,2]
[401979489,1768434633603,-500.0,0.00013698,2]
[401979490,1768434633612,-500.0,0.00013698,2]
[401979491,1768434633622,-500.0,0.00013698,2]
[401979492,1768434633631,-633.96263391,0.00013698,2]
[401979493,1768434633642,-504.29229129,0.00013698,2]
[401979494,1768434633652,-500.0,0.00013698,2]
[401979495,1768434633664,-500.0,0.00013698,2]
[401979496,1768434633673,-500.0,0.00013698,2]
[401979497,1768434633683,-559.52204836,0.00013698,2]
[401979498,1768434633692,-500.0,0.00013698,2]
[401979499,1768434633702,-500.0,0.00013698,2]
[401979500,1768434633712,-500.0,0.00013698,2]
[401979501,1768434633721,-500.0,0.00013698,2]
[401979502,1768434633730,-500.0,0.00013698,2]
[401979503,1768434633740,-500.0,0.00013698,2]
[401979504,1768434633749,-500.0,0.00013698,2]
[401979505,1768434633759,-500.0,0.00013698,2]
[401979506,1768434633768,-500.0,0.00013698,2]
[401979507,1768434633777,-931.46,0.00013698,2]
[401979508,1768434633786,-1000.0,0.00013698,2]
[401979509,1768434633795,-931.46,0.00013698,2]
[401979510,1768434633805,-1000.0,0.00013698,2]
[401979511,1768434633814,-931.46,0.00013698,2]
[401979512,1768434633823,-1000.0,0.00013698,2]
[401979513,1768434633833,-931.46,0.00013698,2]
[401979514,1768434633845,-1000.0,0.00013698,2]
[401979515,1768434633854,-931.46,0.00013698,2]
[401979516,1768434633864,-1000.0,0.00013698,2]
[401979517,1768434633875,-1000.0,0.00013698,2]
[401979518,1768434633884,-931.46,0.00013698,2]
[401979519,1768434633894,-1000.0,0.00013698,2]
[401979520,1768434633905,-931.46,0.00013698,2]
[401979521,1768434633916,-1017.75755303,0.00013698,2]
[401979522,1768434633927,-931.46,0.00013698,2]
[401979523,1768434633937,-931.46,0.00013698,2]
[401979524,1768434633946,-931.46,0.00013698,2]
[401979525,1768434633955,-931.46,0.00013698,2]
[401979526,1768434633964,-931.46,0.00013698,2]
[401979527,1768434633973,-931.46,0.00013698,2]
[401979528,1768434633982,-931.46,0.00013698,2]
[401979529,1768434633992,-931.46,0.00013698,2]
[401979530,1768434634001,-931.46,0.00013698,2]
[401979531,1768434634011,-931.46,0.00013698,2]
[401979532,1768434634020,-500.0,0.00013698,2]
[401979533,1768434634029,-518.87817295,0.00013698,2]
[401979534,1768434634041,-931.46,0.00013698,2]
[401979535,1768434634051,-500.0,0.00013698,2]
[401979536,1768434634060,-9.00202221,0.00013698,2]
[401979772,1768434638599,-922.45797779,0.00013698,2]
[401979773,1768434638609,-500.0,0.00013698,2]
[401979774,1768434638619,-453.8287473,0.00013698,2]
[401979775,1768434638628,-860.80049301,0.00013698,2]
[401979776,1768434638639,-70.65950699,0.00013698,2]
[401979777,1768434638649,-931.46,0.00013698,2]
[401979778,1768434638658,-931.46,0.00013698,2]
[401979779,1768434638669,-931.46,0.00013698,2]
[401979780,1768434638678,-931.54262824,0.00013698,2]
[401979781,1768434638687,-563.44,0.00013698,2]
[401979782,1768434638697,-386.98430245,0.00013698,2]
[401979783,1768434638708,-176.45569755,0.00013698,2]
[401979784,1768434638717,-563.44,0.00013698,2]
[401979785,1768434638726,-36.7923904,0.00013698,2]
[401979786,1768434638737,-386.51,0.00013698,2]
[401979787,1768434638749,-140.1376096,0.00013698,2]
[401979788,1768434638758,-294.8623904,0.00013698,2]
[401979789,1768434638777,-268.5776096,0.00013698,2]
[401979790,1768434638786,-563.44,0.00013698,2]
[401979791,1768434638795,-563.44,0.00013698,2]
[401979792,1768434638805,-563.44,0.00013698,2]
[401979793,1768434638814,-563.44,0.00013698,2]
[401979794,1768434638824,-500.0,0.00013698,2]
[401979795,1768434638833,-500.0,0.00013698,2]
[401979796,1768434638844,-500.0,0.00013698,2]
[401979797,1768434638853,-500.0,0.00013698,2]
[401979798,1768434638862,-500.0,0.00013698,2]
[401979799,1768434638871,-500.0,0.00013698,2]
[401979800,1768434638880,-500.0,0.00013698,2]
[401979801,1768434638890,-500.0,0.00013698,2]
[401979802,1768434638899,-500.0,0.00013698,2]
[401979803,1768434638908,-500.0,0.00013698,2]
[401979804,1768434638918,-500.0,0.00013698,2]
[401979806,1768434638927,-500.0,0.00013698,2]
[401979808,1768434638936,-500.0,0.00013698,2]
[401979810,1768434638945,-550.39437847,0.00013698,2]
[401979812,1768434638954,-500.0,0.00013698,2]
[401979830,1768434639121,-500.0,0.00013698,2]
[401979831,1768434639142,-500.0,0.00013698,2]
[401979832,1768434639151,-500.0,0.00013698,2]
[401979833,1768434639160,-500.0,0.00013698,2]
[401979834,1768434639169,-500.0,0.00013698,2]
[401979835,1768434639179,-500.0,0.00013698,2]
[401979836,1768434639188,-500.0,0.00013698,2]
[401979837,1768434639198,-500.0,0.00013698,2]
[401979838,1768434639207,-500.0,0.00013698,2]
[401979839,1768434639216,-500.0,0.00013698,2]
[401979840,1768434639225,-500.0,0.00013698,2]
[401979841,1768434639234,-500.0,0.00013698,2]
[401979842,1768434639243,-500.0,0.00013698,2]
[401979843,1768434639252,-500.0,0.00013698,2]
[401979844,1768434639262,-500.0,0.00013698,2]
[401979845,1768434639272,-396.20769079,0.00013698,2]
[401979846,1768434639282,-1000.0,0.00013699,2]
[401979847,1768434639291,-506.34451005,0.00013699,2]
[401979848,1768434639305,-500.0,0.00013699,2]
[401979849,1768434639314,-500.0,0.00013699,2]
[401979850,1768434639324,-500.0,0.00013699,2]
[401979851,1768434639333,-500.0,0.00013699,2]
[401979852,1768434639344,-500.18151146,0.00013699,2]
[401979853,1768434639353,-500.0,0.00013699,2]
[401979854,1768434639363,-500.0,0.00013699,2]
[401979855,1768434639374,-500.0,0.00013699,2]
[401979856,1768434639383,-500.0,0.00013699,2]